bitfinex-derivatives/quotes_SOLF0:USTF0_20260315
["timestamp","ask_amount","ask_price","bid_price","bid_amount"]
[1773613447523,16.91167096,90.379,90.32,2.9408536]
[1773613448530,16.91167096,90.376,90.32,2.9408536]
[1773613449323,16.91167096,90.376,90.322,14.65015258]
[1773613449728,16.91167096,90.376,90.33,2.9408536]
[1773613450328,16.91167096,90.376,90.322,14.65015258]
[1773613450526,16.91167096,90.376,90.326,9.962]
[1773613451422,34.86,90.395,90.281,14.67707388]
[1773613451423,16.91167096,90.339,90.281,14.67707388]
[1773613452129,16.91167096,90.339,90.291,9.966]
[1773613452431,16.91167096,90.339,90.281,14.67707388]
[1773613453531,16.91167096,90.336,90.281,14.67707388]
[1773613453930,16.91167096,90.336,90.29,2.9408536]
[1773613454939,16.91167096,90.329,90.258,14.24192223]
[1773613455239,19.85252456,90.32,90.27,2.9408536]
[1773613455536,2.9408536,90.31,90.252,34.86]
[1773613455834,19.916,90.364,90.231,14.22188478]
[1773613455835,16.91167096,90.289,90.231,14.22188478]
[1773613456532,9.966,90.286,90.231,14.22188478]
[1773613456737,16.91167096,90.289,90.231,14.22188478]
[1773613458641,16.91167096,90.289,90.235,24.18489126]
[1773613459339,16.91167096,90.289,90.24,9.971]
[1773613459535,16.91167096,90.346,90.271,14.21128829]
[1773613459741,16.91167096,90.339,90.28,2.9408536]
[1773613460642,34.86,90.345,90.29,2.9408536]
[1773613460643,16.91167096,90.336,90.29,2.9408536]
[1773613460842,16.91167096,90.336,90.29,2.94063317]
[1773613461043,16.91167096,90.336,90.284,9.966]
[1773613462042,16.91167096,90.336,90.28,2.94063317]
[1773613462943,17.33890236,90.333,90.28,2.94063317]
[1773613463743,17.33890236,90.331,90.274,9.968]
[1773613464445,17.33890236,90.331,90.28,2.94063317]
[1773613465448,34.86,90.341,90.213,20.42300841]
[1773613465449,17.33890236,90.289,90.213,20.42300841]
[1773613465640,34.86,90.341,90.19,2.94063317]
[1773613465641,20.27953553,90.25,90.19,2.94063317]
[1773613465946,20.27953553,90.25,90.191,16.94490067]
[1773613466139,17.33890236,90.25,90.191,16.94490067]
[1773613466740,13.75792847,90.343,90.141,33.21]
[1773613466741,17.33890236,90.269,90.201,16.94490067]
[1773613467643,17.33890236,90.269,90.213,9.974]
[1773613469345,17.33890236,90.341,90.214,16.94490067]
[1773613469549,17.33890236,90.341,90.261,9.57909615]
[1773613470344,17.33890236,90.348,90.261,9.57909615]
[1773613471243,17.33890236,90.336,90.261,9.57909615]
[1773613472645,17.33890236,90.336,90.276,9.967]
[1773613474849,17.33890236,90.332,90.264,9.969]
[1773613475045,17.33890236,90.332,90.261,9.57909615]
[1773613475346,9.961,90.331,90.273,9.968]
[1773613475650,17.33890236,90.332,90.273,9.968]
[1773613476952,17.33890236,90.359,90.284,11.50194047]
[1773613477253,17.33890236,90.352,90.261,11.55306094]
[1773613478247,17.33890236,90.336,90.278,9.967]
[1773613479555,17.33890236,90.333,90.278,9.967]
[1773613479756,17.33890236,90.333,90.284,9.966]
[1773613481047,17.33890236,90.333,90.279,11.74655223]
[1773613481959,17.33890236,90.333,90.281,9.967]
[1773613484466,17.33890236,90.333,90.272,9.968]
[1773613484862,17.33890236,90.333,90.273,11.80421147]
[1773613486569,17.33890236,90.331,90.282,9.967]
[1773613487069,17.33890236,90.331,90.281,9.967]
[1773613488769,17.33890236,90.331,90.29,2.94056351]
[1773613489768,17.33890236,90.331,90.281,9.967]
[1773613493976,16.86832132,90.328,90.251,11.51069066]
[1773613494176,16.86832132,90.319,90.26,2.94056351]
[1773613494479,16.86832132,90.319,90.267,9.968]
[1773613494866,16.86832132,90.319,90.261,11.5593134]
[1773613495176,16.86832132,90.319,90.27,2.94056351]
[1773613496674,16.86832132,90.319,90.275,9.968]
[1773613497471,16.86832132,90.333,90.284,9.966]
[1773613497676,16.86832132,90.329,90.28,2.94056351]
[1773613497876,16.86832132,90.329,90.276,11.61628261]
[1773613498676,16.86832132,90.329,90.276,21.58328261]
[1773613498880,16.86832132,90.329,90.276,9.967]
[1773613500179,16.86832132,90.329,90.284,9.967]
[1773613501079,16.86832132,90.329,90.292,9.966]
[1773613501282,16.86832132,90.344,90.292,21.64398563]
[1773613501773,16.86832132,90.344,90.3,2.94056351]
[1773613503781,19.80888483,90.34,90.28,2.94056351]
[1773613504382,16.86832132,90.319,90.26,2.94056351]
[1773613504581,16.86832132,90.319,90.26,14.75616706]
[1773613504882,16.86832132,90.319,90.27,2.94056351]
[1773613505787,16.86832132,90.319,90.275,9.968]
[1773613505981,16.86832132,90.319,90.27,2.94056351]
[1773613506187,16.86832132,90.337,90.292,9.966]
[1773613507489,16.86832132,90.337,90.282,9.967]
[1773613509390,16.86832132,90.337,90.29,9.966]
[1773613509586,16.86832132,90.337,90.29,12.90656351]
[1773613509786,16.86832132,90.353,90.3,2.94056351]
[1773613510494,16.86832132,90.351,90.3,2.94056351]
[1773613510690,16.86832132,90.349,90.3,2.94056351]
[1773613511595,16.86832132,90.349,90.302,9.965]
[1773613513091,16.86832132,90.349,90.311,9.964]
[1773613513689,16.86832132,90.349,90.302,9.964]
[1773613520496,16.86832132,90.361,90.31,15.27453263]
[1773613520993,16.86832132,90.361,90.31,15.27299316]
[1773613521592,16.86832132,90.361,90.317,9.963]
[1773613523096,18.31621059,90.376,90.34,9.96]
[1773613523397,18.31621059,90.376,90.33,2.93902404]
[1773613523597,18.31621059,90.376,90.331,22.30043262]
[1773613523798,18.31621059,90.376,90.331,12.33943262]
[1773613524500,18.31621059,90.376,90.342,9.96]
[1773613524701,18.31621059,90.399,90.35,15.26979241]
[1773613524896,2.93902404,90.42,90.36,2.93902404]
[1773613525098,18.31621059,90.419,90.36,15.26979241]
[1773613525695,18.31621059,90.419,90.364,9.958]
[1773613526292,18.31621059,90.419,90.335,34.86]
[1773613526293,18.31621059,90.419,90.371,12.20581378]
[1773613526493,18.31621059,90.419,90.292,26.23861263]
[1773613526494,18.31621059,90.447,90.391,12.20581378]
[1773613526695,18.31621059,90.447,90.4,2.93902404]
[1773613526894,18.31621059,90.447,90.391,12.20581378]
[1773613527295,18.31621059,90.447,90.401,9.954]
[1773613528098,18.31621059,90.447,90.401,23.57949152]
[1773613528401,18.31621059,90.447,90.39,26.5217233]
[1773613528602,18.31621059,90.447,90.39,16.5667233]
[1773613529099,18.31621059,90.447,90.4,2.93902404]
[1773613529294,18.31621059,90.447,90.4,12.89302404]
[1773613529500,18.31621059,90.447,90.4,9.954]
[1773613529894,18.31621059,90.447,90.401,13.66116094]
[1773613530995,18.31621059,90.447,90.404,9.953]
[1773613531397,18.31621059,90.447,90.401,13.66116094]
[1773613531598,18.31621059,90.447,90.393,9.954]
[1773613531796,18.31621059,90.429,90.38,2.93902404]
[1773613531996,18.31621059,90.429,90.38,16.70017735]
[1773613532192,2.93902404,90.45,90.39,2.93902404]
[1773613532398,18.31621059,90.449,90.39,16.72566753]
[1773613534604,18.31621059,90.439,90.382,9.956]
[1773613534804,18.31621059,90.439,90.39,2.93902404]
[1773613535494,18.31621059,90.439,90.391,9.955]
[1773613536599,18.31621059,90.439,90.392,14.30972576]
[1773613536799,18.31621059,90.439,90.396,9.954]
[1773613538700,18.31621059,90.455,90.41,17.3663919]
[1773613539308,18.31621059,90.455,90.414,9.952]
[1773613540513,18.31621059,90.455,90.424,9.951]
[1773613540915,18.31621059,90.455,90.41,17.3663919]
[1773613541110,2.93902404,90.44,90.395,14.55312781]
[1773613541316,18.31621059,90.439,90.395,14.55312781]
[1773613541614,18.31621059,90.439,90.398,9.954]
[1773613542114,18.31621059,90.439,90.39,2.93902404]
[1773613542115,18.31621059,90.439,90.388,9.955]
[1773613542715,18.31621059,90.439,90.39,2.93902404]
[1773613543218,18.31621059,90.439,90.391,14.653404]
[1773613543814,18.31621059,90.459,90.4,17.31892152]
[1773613545717,18.31621059,90.459,90.411,9.953]
[1773613546317,33.07908807,90.476,90.42,2.93902404]
[1773613546513,2.93902404,90.47,90.412,14.96087704]
[1773613546713,18.31621059,90.469,90.412,14.96087704]
[1773613546915,18.31621059,90.469,90.418,9.952]
[1773613547422,18.31621059,90.459,90.418,9.952]
[1773613548619,18.31621059,90.459,90.407,9.953]
[1773613550021,2.93902404,90.44,90.383,34.82]
[1773613550221,18.31621059,90.439,90.38,14.95256655]
[1773613550518,18.31621059,90.449,90.394,9.954]
[1773613550725,18.31621059,90.449,90.394,24.94016481]
[1773613551021,18.31621059,90.449,90.4,2.93902404]
[1773613551324,18.31621059,90.449,90.401,14.98616481]
[1773613552523,18.31621059,90.449,90.405,9.953]
[1773613552720,18.31621059,90.449,90.401,14.98616481]
[1773613553023,18.31621059,90.449,90.41,9.953]
[1773613553422,18.13436246,90.459,90.41,2.93902404]
[1773613553723,18.13436246,90.459,90.41,9.953]
[1773613554718,18.13436246,90.449,90.401,14.98616481]
[1773613555720,18.13436246,90.449,90.404,9.953]
[1773613557619,18.13436246,90.449,90.412,9.952]
[1773613559324,18.13436246,90.449,90.403,9.953]
[1773613560522,14.76287748,90.476,90.431,15.2724824]
[1773613560725,14.76287748,90.476,90.427,15.2724824]
[1773613561024,14.76287748,90.476,90.43,18.21150644]
[1773613561426,14.76287748,90.476,90.438,9.949]
[1773613561721,18.13436246,90.475,90.438,9.949]
[1773613562029,18.13436246,90.475,90.43,18.21150644]
[1773613562722,14.76287748,90.476,90.43,18.21150644]
[1773613562723,14.76287748,90.476,90.44,2.93902404]
[1773613563524,14.76287748,90.476,90.442,9.949]
[1773613564329,18.13436246,90.475,90.42,2.93902404]
[1773613564525,18.13436246,90.459,90.402,16.54270701]
[1773613565529,18.13436246,90.457,90.403,9.953]
[1773613566128,18.13436246,90.457,90.404,16.56569454]
[1773613566328,18.13436246,90.457,90.41,19.50471858]
[1773613567330,18.13436246,90.457,90.411,9.953]
[1773613568127,18.13436246,90.439,90.38,16.89245611]
[1773613568325,18.13436246,90.439,90.259,11.07]
[1773613568326,18.13436246,90.439,90.39,19.84815241]
[1773613568734,18.13436246,90.439,90.4,9.954]
[1773613570242,18.13436246,90.456,90.41,2.93902404]
[1773613571337,18.13436246,90.456,90.401,16.81742359]
[1773613571530,18.13436246,90.456,90.411,9.952]
[1773613572833,18.13436246,90.456,90.401,26.77142359]
[1773613573030,18.13436246,90.456,90.401,16.81742359]
[1773613573938,18.13436246,90.449,90.401,26.77142359]
[1773613574438,18.13436246,90.449,90.408,9.953]
[1773613576338,18.13436246,90.449,90.412,9.952]
[1773613576940,18.13436246,90.463,90.42,9.951]
[1773613577142,18.13436246,90.463,90.42,12.89002404]
[1773613577542,18.13436246,90.463,90.42,9.951]
[1773613579339,18.13436246,90.439,90.393,34.82]
[1773613580041,18.13436246,90.437,90.383,9.956]
[1773613580240,18.13436246,90.437,90.351,26.23861263]
[1773613580241,18.13436246,90.399,90.345,34.82]
[1773613580440,18.13436246,90.399,90.34,2.93902404]
[1773613580638,18.13436246,90.399,90.334,17.43449301]
[1773613580841,18.13436246,90.389,90.334,17.43449301]
[1773613581840,18.13436246,90.389,90.338,9.961]
[1773613588146,18.13436246,90.389,90.334,17.43449301]
[1773613592449,17.37605401,90.387,90.334,17.43449301]
[1773613593357,17.37605401,90.384,90.334,17.43449301]
[1773613595356,17.37605401,90.384,90.336,9.961]
[1773613597262,17.37605401,90.384,90.336,28.86637747]
[1773613597461,17.37605401,90.384,90.34,9.96]
[1773613597863,17.37605401,90.399,90.345,18.90537747]
[1773613599668,17.37605401,90.399,90.348,9.959]
[1773613600966,17.37605401,90.399,90.304,20.35358425]
[1773613600967,17.37605401,90.395,90.304,18.90537747]
[1773613601174,17.37605401,90.379,90.261,18.90537747]
[1773613601366,17.37605401,90.359,90.263,18.90537747]
[1773613601561,17.37605401,90.359,90.262,34.84]
[1773613601562,17.37605401,90.359,90.292,18.90537747]
[1773613603177,17.37605401,90.357,90.292,18.90537747]
[1773613604774,17.37605401,90.339,90.293,9.965]
[1773613605573,2.94095095,90.32,90.273,9.968]
[1773613605774,17.37605401,90.309,90.263,18.90537747]
[1773613606476,17.37605401,90.309,90.263,28.87437747]
[1773613606777,17.37605401,90.329,90.271,18.90537747]
[1773613607178,17.37605401,90.329,90.272,18.90537747]
[1773613608682,17.37605401,90.329,90.279,28.87237747]
[1773613610276,17.37605401,90.343,90.3,21.84632842]
[1773613610472,17.37605401,90.358,90.3,21.84632842]
[1773613611182,17.37605401,90.358,90.311,18.90537747]
[1773613611375,17.37605401,90.358,90.32,2.94095095]
[1773613611581,2.94095095,90.38,90.323,9.962]
[1773613611582,17.37605401,90.377,90.323,9.962]
[1773613611979,17.37605401,90.377,90.321,18.90537747]
[1773613611980,17.37605401,90.377,90.33,2.94095095]
[1773613614784,17.37605401,90.377,90.321,9.962]
[1773613617879,34.86,90.401,90.278,18.45696396]
[1773613617880,17.84142142,90.339,90.278,18.45696396]
[1773613618177,17.84142142,90.329,90.278,18.45696396]
[1773613619484,17.84142142,90.329,90.28,2.94095095]
[1773613619686,17.84142142,90.329,90.282,9.967]
[1773613620583,17.84142142,90.327,90.273,9.968]
[1773613620783,17.84142142,90.319,90.273,9.968]
[1773613621083,17.84142142,90.309,90.272,9.968]
[1773613621686,2.94095095,90.33,90.272,9.968]
[1773613621988,17.84142142,90.329,90.272,9.968]
[1773613622179,17.84142142,90.328,90.272,9.968]
[1773613622384,17.84142142,90.319,90.263,18.45696396]
[1773613622986,17.84142142,90.319,90.27,2.94095095]
[1773613623789,17.84142142,90.319,90.276,9.967]
[1773613624691,17.84142142,90.319,90.276,28.42396396]
[1773613624891,17.84142142,90.335,90.284,9.967]
[1773613627593,2.94095095,90.33,90.284,9.967]
[1773613628592,17.84142142,90.335,90.284,9.967]
[1773613632593,17.84142142,90.335,90.292,9.966]
[1773613633598,20.78237237,90.33,90.292,9.966]
[1773613635103,17.84142142,90.33,90.292,9.966]
[1773613635504,20.78237237,90.33,90.267,18.45696396]
[1773613635801,20.78237237,90.33,90.27,21.39791491]
[1773613636497,20.78237237,90.33,90.282,9.967]
[1773613636708,20.78237237,90.33,90.27,21.39791491]
[1773613637104,17.84142142,90.33,90.281,18.45696396]
[1773613638105,17.84142142,90.33,90.288,9.966]
[1773613640112,10.22502985,90.397,90.258,34.86]
[1773613640113,17.84142142,90.396,90.311,18.45696396]
[1773613640307,17.84142142,90.369,90.3,2.94095095]
[1773613640604,17.84142142,90.359,90.3,2.94095095]
[1773613641510,17.84142142,90.359,90.305,9.964]
[1773613641708,17.84142142,90.359,90.3,21.39791491]
[1773613642908,17.93849616,90.373,90.32,22.19467127]
[1773613643102,17.93849616,90.359,90.303,19.25372032]
[1773613643709,17.93849616,90.357,90.31,2.94095095]
[1773613644504,17.93849616,90.357,90.318,9.963]
[1773613650612,9.957,90.369,90.319,19.25372032]
[1773613650809,17.93849616,90.368,90.319,19.25372032]
[1773613651207,17.93849616,90.368,90.318,9.963]
[1773613651408,17.93849616,90.364,90.318,9.963]
[1773613652409,17.93849616,90.349,90.291,19.25372032]
[1773613652610,17.93849616,90.339,90.291,19.25372032]
[1773613652813,17.93849616,90.359,90.3,22.19301969]
[1773613653716,17.93849616,90.359,90.311,19.25372032]
[1773613654615,17.93849616,90.359,90.317,9.963]
[1773613655209,17.93849616,90.359,90.311,19.25372032]
[1773613656116,17.93849616,90.359,90.318,9.963]
[1773613657412,17.93849616,90.359,90.3,2.93929937]
[1773613657608,17.93849616,90.359,90.296,19.25372032]
[1773613657609,17.93849616,90.349,90.296,19.25372032]
[1773613658319,17.93849616,90.349,90.309,9.964]
[1773613658819,17.93849616,90.319,90.26,2.93929937]
[1773613659014,17.93849616,90.319,90.26,22.19301969]
[1773613659223,17.93849616,90.319,90.271,19.25372032]
[1773613659618,17.93849616,90.319,90.283,9.967]
[1773613659825,17.93849616,90.339,90.283,29.22072032]
[1773613660017,17.93849616,90.339,90.283,19.25372032]
[1773613660719,17.93849616,90.329,90.283,19.25372032]
[1773613662219,17.93849616,90.329,90.285,19.25372032]
[1773613662425,17.93849616,90.343,90.291,19.25372032]
[1773613662627,17.93849616,90.343,90.3,22.19301969]
[1773613664123,17.93849616,90.343,90.302,19.25372032]
[1773613664329,17.93849616,90.359,90.302,19.25372032]
[1773613664621,17.93849616,90.359,90.31,22.19301969]
[1773613665023,17.93849616,90.359,90.311,9.963]
[1773613665329,17.93849616,90.359,90.312,19.25372032]
[1773613665528,9.956,90.38,90.32,22.19301969]
[1773613665529,12.89529937,90.38,90.32,22.19301969]
[1773613665730,17.93849616,90.379,90.322,19.25372032]
[1773613667026,17.93849616,90.379,90.33,2.93929937]
[1773613667227,17.93849616,90.379,90.332,19.25372032]
[1773613668532,17.93849616,90.379,90.335,19.25372032]
[1773613668920,17.93849616,90.379,90.34,2.93929937]
[1773613669123,2.93929937,90.4,90.34,22.19301969]
[1773613669430,2.93929937,90.4,90.267,32.05499928]
[1773613669431,17.93849616,90.397,90.351,19.25372032]
[1773613670323,17.93849616,90.397,90.36,2.93929937]
[1773613670526,17.93849616,90.397,90.353,19.25372032]
[1773613671430,17.93849616,90.397,90.36,2.93929937]
[1773613671821,17.93849616,90.416,90.36,22.19301969]
[1773613672022,17.93849616,90.416,90.37,2.93929937]
[1773613672426,17.93849616,90.416,90.362,18.92120083]
[1773613673327,2.93929937,90.42,90.34,34.86]
[1773613673328,18.33679543,90.409,90.35,2.93929937]
[1773613673527,18.33679543,90.389,90.33,2.93929937]
[1773613673728,18.33679543,90.389,90.33,20.8374836]
[1773613674233,18.33679543,90.379,90.32,2.93929937]
[1773613675236,18.33679543,90.369,90.314,17.89818423]
[1773613675635,18.33679543,90.369,90.321,9.962]
[1773613676037,18.33679543,90.369,90.315,9.963]
[1773613676237,18.33679543,90.369,90.32,2.93929937]
[1773613676437,18.33679543,90.369,90.316,17.89818423]
[1773613677639,18.33679543,90.369,90.32,9.963]
[1773613679839,18.33679543,90.369,90.316,17.89818423]
[1773613680433,18.33679543,90.369,90.318,27.86118423]
[1773613681136,18.33679543,90.367,90.31,2.93929937]
[1773613681336,18.33679543,90.349,90.291,34.86]
[1773613681530,18.33679543,90.349,90.29,20.8374836]
[1773613682530,18.33679543,90.339,90.29,17.89818423]
[1773613683138,18.33679543,90.339,90.292,17.89818423]
[1773613683333,18.33679543,90.339,90.3,2.93929937]
[1773613683737,18.33679543,90.339,90.304,9.964]
[1773613689050,18.33679543,90.339,90.295,17.89818423]
[1773613690238,18.33679543,90.339,90.299,9.965]
[1773613693242,2.93929937,90.33,90.271,34.86]
[1773613693441,18.33679543,90.319,90.271,17.89818423]
[1773613694050,18.33679543,90.319,90.28,2.93929937]
[1773613694648,18.33679543,90.319,90.28,12.90629937]
[1773613695552,18.33679543,90.319,90.28,30.8044836]
[1773613697551,18.33679543,90.319,90.285,9.966]
[1773613699058,18.33679543,90.338,90.288,9.966]
[1773613699260,18.33679543,90.338,90.286,17.89818423]
[1773613700548,18.33679543,90.338,90.296,9.965]
[1773613704763,18.48376861,90.329,90.288,9.966]
[1773613705958,18.48376861,90.329,90.272,18.3312137]
[1773613706161,18.48376861,90.318,90.261,18.3312137]
[1773613706558,18.48376861,90.318,90.271,18.3312137]
[1773613707555,18.48376861,90.318,90.278,9.967]
[1773613708662,18.48376861,90.318,90.223,18.3312137]
[1773613708863,18.48376861,90.279,90.225,18.3312137]
[1773613709162,29.50776189,90.294,90.25,2.94156389]
[1773613709363,18.48376861,90.294,90.251,18.3312137]
[1773613710468,18.48376861,90.309,90.251,18.3312137]
[1773613710966,18.48376861,90.309,90.253,18.3312137]
[1773613711167,18.48376861,90.309,90.261,18.3312137]
[1773613713971,18.48376861,90.309,90.262,9.969]
[1773613714172,18.48376861,90.309,90.263,18.3312137]
[1773613715067,18.48376861,90.309,90.27,21.27277759]
[1773613715571,18.48376861,90.325,90.28,21.27277759]
[1773613716575,18.48376861,90.339,90.282,18.3312137]
[1773613716769,18.48376861,90.339,90.226,20.35358425]
[1773613716770,18.48376861,90.339,90.29,21.27277759]
[1773613716967,18.48376861,90.339,90.29,18.3312137]
[1773613720873,18.48376861,90.339,90.292,18.3312137]
[1773613721070,18.48376861,90.339,90.3,2.94156389]
[1773613723673,18.48376861,90.339,90.301,9.965]
[1773613726982,18.48376861,90.339,90.248,60.07462768]
[1773613726983,18.48376861,90.329,90.27,2.94156389]
[1773613727178,18.48376861,90.319,90.26,2.94156389]
[1773613727480,18.48376861,90.309,90.26,21.27277759]
[1773613728376,18.48376861,90.309,90.272,9.968]
[1773613730779,18.48376861,90.322,90.281,18.3312137]
[1773613730987,18.48376861,90.309,90.253,18.3312137]
[1773613731182,18.48376861,90.309,90.261,18.3312137]
[1773613731379,18.48376861,90.309,90.27,2.94156389]
[1773613732384,18.48376861,90.309,90.261,18.3312137]
[1773613733381,18.48376861,90.309,90.273,9.968]
[1773613735682,18.39948071,90.322,90.281,17.14843478]
[1773613736585,18.39948071,90.322,90.289,9.966]
[1773613738390,18.39948071,90.341,90.29,2.94156389]
[1773613739586,18.39948071,90.341,90.294,9.965]
[1773613747195,18.39948071,90.339,90.294,9.965]
[1773613748788,18.39948071,90.337,90.285,9.966]
[1773613748994,18.39948071,90.337,90.286,17.14843478]
[1773613749194,18.39948071,90.337,90.29,2.94156389]
[1773613750598,18.39948071,90.337,90.291,9.966]
[1773613757104,18.39948071,90.335,90.282,9.967]
[1773613757300,18.39948071,90.329,90.282,9.967]
[1773613757501,18.39948071,90.319,90.268,34.86]
[1773613757906,18.39948071,90.319,90.282,9.967]
[1773613758203,18.39948071,90.319,90.283,17.14843478]
[1773613759609,18.39948071,90.319,90.287,9.966]
[1773613761107,18.39948071,90.333,90.29,20.08999867]
[1773613761502,18.39948071,90.333,90.298,9.965]
[1773613763714,18.39948071,90.333,90.29,20.08999867]
[1773613764610,18.39948071,90.333,90.291,27.27926853]
[1773613768616,17.58799598,90.332,90.282,9.967]
[1773613768820,17.58799598,90.329,90.282,9.967]
[1773613770427,17.58799598,90.319,90.272,9.968]
[1773613770927,17.58799598,90.317,90.272,9.968]
[1773613771518,17.58799598,90.317,90.281,17.31326853]
[1773613771823,17.58799598,90.349,90.29,20.25373259]
[1773613772019,17.58799598,90.347,90.29,20.25373259]
[1773613772621,17.58799598,90.341,90.293,17.31326853]
[1773613773421,17.58799598,90.341,90.296,9.965]
[1773613775015,17.58799598,90.341,90.297,17.31326853]
[1773613775219,17.58799598,90.341,90.296,9.965]
[1773613775220,17.58799598,90.341,90.299,27.27826853]
[1773613775816,17.58799598,90.341,90.302,9.965]
[1773613776022,17.58799598,90.341,90.303,17.31326853]
[1773613776322,17.58799598,90.354,90.311,17.31326853]
[1773613777421,17.58799598,90.354,90.312,9.963]
[1773613782830,17.58799598,90.354,90.318,9.963]
[1773613783032,17.58799598,90.354,90.32,20.25373259]
[1773613784530,17.58799598,90.354,90.32,17.31326853]
[1773613786634,17.58799598,90.362,90.32,17.31326853]
[1773613787533,17.58799598,90.362,90.32,20.25373259]
[1773613789735,17.58799598,90.362,90.322,9.962]
[1773613790932,17.58799598,90.362,90.325,27.27526853]
[1773613791131,17.58799598,90.362,90.326,17.31326853]
[1773613791331,17.58799598,90.388,90.342,9.96]
[1773613791529,17.58799598,90.386,90.35,2.94046406]
[1773613791838,17.58799598,90.385,90.343,17.31326853]
[1773613792530,17.58799598,90.385,90.346,9.96]
[1773613792731,17.58799598,90.385,90.351,18.3211947]
[1773613793131,17.86191521,90.395,90.351,18.3211947]
[1773613794240,17.86191521,90.395,90.36,2.94046406]
[1773613794432,34.86,90.397,90.353,18.3211947]
[1773613794637,34.86,90.397,90.295,33.22]
[1773613794638,17.86191521,90.41,90.371,18.3211947]
[1773613795839,34.86,90.416,90.371,18.3211947]
[1773613796033,34.86,90.416,90.38,2.94046406]
[1773613796440,52.72191521,90.416,90.371,18.3211947]
[1773613796640,17.86191521,90.415,90.371,18.3211947]
[1773613797236,17.86191521,90.409,90.352,18.3211947]
[1773613797635,17.86191521,90.409,90.36,21.26165876]
[1773613797835,34.86,90.416,90.341,34.86]
[1773613797836,34.86,90.416,90.372,18.3211947]
[1773613798233,17.86191521,90.415,90.372,18.3211947]
[1773613798637,17.86191521,90.415,90.374,28.2781947]
[1773613800645,17.86191521,90.444,90.391,18.3211947]
[1773613800845,17.86191521,90.444,90.4,21.26165876]
[1773613801041,17.86191521,90.429,90.382,18.3211947]
[1773613801241,17.86191521,90.429,90.371,18.3211947]
[1773613801842,17.86191521,90.419,90.371,18.3211947]
[1773613802049,20.80237927,90.41,90.357,18.3211947]
[1773613802445,20.80237927,90.41,90.369,18.3211947]
[1773613802643,17.86191521,90.425,90.371,18.3211947]
[1773613802845,17.86191521,90.425,90.38,21.26165876]
[1773613803149,34.84,90.434,90.39,21.26165876]
[1773613803443,17.86191521,90.453,90.41,16.82165876]
[1773613803651,17.86191521,90.469,90.43,2.94046406]
[1773613803844,17.86191521,90.485,90.44,2.94046406]
[1773613804449,17.86191521,90.485,90.431,9.95]
[1773613805048,17.86191521,90.485,90.43,2.94046406]
[1773613805544,17.86191521,90.485,90.43,31.21165876]
[1773613805749,17.86191521,90.485,90.44,2.94046406]
[1773613806352,17.86191521,90.485,90.443,9.949]
[1773613806547,2.94046406,90.5,90.411,34.84]
[1773613806548,17.86191521,90.499,90.45,21.26165876]
[1773613807054,17.86191521,90.485,90.44,2.94046406]
[1773613807249,17.86191521,90.475,90.42,2.94046406]
[1773613807553,2.94046406,90.49,90.431,18.3211947]
[1773613807750,17.86191521,90.492,90.44,2.94046406]
[1773613808252,17.86191521,90.492,90.45,2.94046406]
[1773613808646,17.86191521,90.492,90.441,18.3211947]
[1773613809449,17.86191521,90.492,90.365,19.916]
[1773613809450,17.86191521,90.524,90.461,18.3211947]
[1773613809751,10.22502985,90.604,90.35,154.928]
[1773613809752,34.82,90.534,90.486,18.3211947]
[1773613809952,17.86191521,90.541,90.491,18.3211947]
[1773613810353,17.86191521,90.539,90.48,2.94046406]
[1773613810548,17.86191521,90.529,90.476,18.3211947]
[1773613810753,17.86191521,90.529,90.47,2.94046406]
[1773613810948,17.86191521,90.529,90.471,18.3211947]
[1773613811255,17.86191521,90.529,90.48,2.94046406]
[1773613811455,17.86191521,90.529,90.471,18.3211947]
[1773613811856,17.86191521,90.519,90.46,2.94046406]
[1773613812357,20.80237927,90.51,90.455,18.3211947]
[1773613812543,17.86191521,90.51,90.46,2.94046406]
[1773613814351,17.86191521,90.51,90.46,21.26165876]
[1773613815347,17.86191521,90.525,90.471,18.3211947]
[1773613818556,17.86191521,90.509,90.442,18.3211947]
[1773613818759,17.86191521,90.509,90.451,18.3211947]
[1773613819559,20.80237927,90.5,90.451,18.3211947]
[1773613820052,17.86191521,90.5,90.451,18.3211947]
[1773613820656,27.80291521,90.517,90.46,21.26165876]
[1773613820856,17.86191521,90.517,90.47,2.94046406]
[1773613821054,17.86191521,90.536,90.48,2.94046406]
[1773613821256,2.94046406,90.54,90.47,18.3211947]
[1773613821257,17.86191521,90.529,90.47,21.26165876]
[1773613822563,18.51524406,90.528,90.47,21.26165876]
[1773613824164,18.51524406,90.524,90.47,21.26165876]
[1773613825060,9.941,90.513,90.47,18.3211947]
[1773613825266,18.51524406,90.512,90.46,2.94046406]